fUST/lending_fUST_20250107
["ID","MTS","AMOUNT","RATE_DAILY","PERIOD"]
[347994730,1736262663659,-500.0,0.00020821,3]
[347994733,1736262663669,-500.0,0.00020821,3]
[347994734,1736262663680,-500.0,0.00020821,3]
[347994736,1736262663690,-1800.18,0.00020821,3]
[347994738,1736262663701,-540.05,0.00020821,3]
[347994740,1736262663712,-500.0,0.00020821,3]
[347994742,1736262663723,-2277.1,0.00020821,3]
[347994744,1736262663734,-500.0,0.00020821,3]
[347994746,1736262663745,-1091.29,0.00020821,3]
[347994748,1736262663755,-510.13901952,0.00020821,3]
[347994750,1736262663767,-2150.95,0.00020821,3]
[347994752,1736262663777,-43157.84,0.00020821,3]
[347994754,1736262663788,-581.13,0.00020821,3]
[347994756,1736262663799,-789.67,0.00020821,3]
[347994758,1736262663810,-1941.22,0.00020821,3]
[347994760,1736262663830,-500.0,0.00020821,3]
[347994762,1736262663851,-3905.68,0.00020821,3]
[347994764,1736262663865,-500.0,0.00020821,3]
[347994766,1736262663876,-833.07,0.00020821,3]
[347994768,1736262663888,-500.0,0.00020821,3]
[347994770,1736262663899,-500.0,0.00020821,3]
[347994772,1736262663910,-500.0,0.00020821,3]
[347994774,1736262663922,-1300.27,0.00020821,3]
[347994776,1736262663933,-627.47211984,0.00020821,7]
[347994778,1736262663945,-500.0,0.00020821,3]
[347994780,1736262663957,-500.0,0.00020821,3]
[347994782,1736262663968,-533.4,0.00020821,3]
[347994784,1736262663980,-691.9,0.00020821,3]
[347994786,1736262663992,-1830.79,0.00020821,3]
[347994788,1736262664004,-500.0,0.00020821,3]
[347994790,1736262664016,-500.0,0.00020821,2]
[347994792,1736262664027,-1596.69,0.00020821,3]
[347994794,1736262664039,-616.54,0.00020821,3]
[347994796,1736262664051,-2143.0,0.00020821,3]
[347994798,1736262664062,-3247.14716527,0.00020866,2]
[347994800,1736262664077,-14237.45,0.000209,2]
[347994802,1736262664088,-5316.38,0.000209,2]
[347994804,1736262664100,-15545.31,0.000209,2]
[347994806,1736262664112,-674.350536,0.00020904,2]
[347994808,1736262664123,-10000.0,0.00021,5]
[347994810,1736262664135,-1000.0,0.00021,21]
[347994812,1736262664147,-1000.0,0.00021,5]
[347994825,1736262664159,-263.35418914,0.00021,2]
[347994827,1736262664299,-10338.38993982,0.00021,2]
[347994829,1736262664310,-237.34081948,0.00021,2]
[347994831,1736262664326,-3152.12462823,0.00021,2]
[347994833,1736262664337,-2000.0,0.00021,2]
[347994835,1736262664347,-2000.0,0.00021,4]
[347994837,1736262664358,-5707.29558905,0.00021,2]
[347994840,1736262664369,-600.0,0.00021,3]
[347994842,1736262664380,-3000.0,0.00021,2]
[347994843,1736262664391,-251.37724306,0.00021,2]
[347994846,1736262664402,-3247.14716527,0.00021003,2]
[347994847,1736262664412,-3000.0,0.0002101,2]
[347994850,1736262664423,-3000.0,0.0002102,2]
[347994851,1736262664433,-1502.0011565,0.00021022,2]
[347994854,1736262664444,-1500.0,0.00021022,2]
[347994855,1736262664455,-3000.0,0.0002103,2]
[347994857,1736262664466,-3000.0,0.0002104,2]
[347994860,1736262664478,-3000.0,0.0002105,2]
[347994861,1736262664489,-3000.0,0.0002106,2]
[347994863,1736262664502,-3000.0,0.0002107,2]
[347994866,1736262664514,-3000.0,0.0002108,2]
[347994868,1736262664525,-3000.0,0.0002109,2]
[347994870,1736262664536,-500.0,0.00021095,3]
[347994872,1736262664547,-500.0,0.00021095,3]
[347994874,1736262664557,-631.58724469,0.00021095,3]
[347994876,1736262664573,-566.70217499,0.00021095,3]
[347994878,1736262664585,-500.0,0.00021095,3]
[347994880,1736262664595,-500.0,0.00021095,3]
[347994882,1736262664606,-500.0,0.00021095,3]
[347994884,1736262664617,-500.0,0.00021095,3]
[347994885,1736262664629,-500.0,0.00021095,3]
[347994888,1736262664641,-500.0,0.00021095,3]
[347994889,1736262664651,-500.0,0.00021095,3]
[347994892,1736262664662,-500.0,0.00021095,3]
[347994893,1736262664673,-500.0,0.00021095,3]
[347994895,1736262664683,-502.73,0.00021095,3]
[347994897,1736262664694,-500.0,0.00021095,3]
[347994899,1736262664705,-504.22383972,0.00021095,3]
[347994901,1736262664715,-507.1148611,0.00021095,3]
[347994903,1736262664726,-500.0,0.00021095,3]
[347994906,1736262664736,-394.17247844,0.00021095,3]
[347994907,1736262664746,-500.0,0.00021095,3]
[347994909,1736262664756,-500.0,0.00021095,3]
[347994911,1736262664767,-500.0,0.00021095,3]
[347994913,1736262664777,-500.0,0.00021095,3]
[347994916,1736262664788,-500.0,0.00021095,3]
[347994918,1736262664798,-614.46304137,0.00021095,3]
[347994920,1736262664808,-500.0,0.00021095,3]
[347994921,1736262664823,-500.0,0.00021095,3]
[347994923,1736262664840,-818.63,0.00021095,3]
[347994925,1736262664851,-418.59564271,0.00021095,3]
[347994927,1736262664861,-500.0,0.00021095,3]
[347994930,1736262664874,-500.0,0.00021095,3]
[347994932,1736262664886,-500.0,0.00021095,3]
[347994934,1736262664896,-1546.15,0.00021095,3]
[347994936,1736262664907,-788.08,0.00021095,3]
[347994938,1736262664918,-534.34,0.00021095,3]
[347994940,1736262664929,-872.39,0.00021095,3]
[347994942,1736262664939,-500.0,0.00021095,3]
[347994944,1736262664949,-500.0,0.00021095,3]
[347994946,1736262664960,-500.0,0.00021095,3]
[347994948,1736262664971,-500.0,0.00021095,3]
[347994950,1736262664982,-500.0,0.00021095,3]
[347994952,1736262664993,-500.0,0.00021095,3]
[347994954,1736262665005,-447.90230795,0.00021095,3]
[347994956,1736262665016,-500.0,0.00021095,3]
[347994958,1736262665029,-608.14,0.00021095,3]
[347994960,1736262665041,-500.0,0.00021095,3]
[347994962,1736262665052,-503.22,0.00021095,3]
[347994964,1736262665063,-500.0,0.00021095,3]
[347994966,1736262665080,-500.0,0.00021095,3]
[347994968,1736262665092,-230.930792,0.00021095,3]
[347994970,1736262665103,-596.65,0.00021095,3]
[347994972,1736262665115,-500.0,0.00021095,3]
[347994974,1736262665126,-500.0,0.00021095,3]
[347994976,1736262665137,-164.91059074,0.00021095,3]
[347994978,1736262665149,-500.0,0.00021095,3]
[347994980,1736262665160,-500.0,0.00021095,3]
[347994982,1736262665170,-500.0,0.00021095,3]
[347994984,1736262665181,-500.0,0.00021095,3]
[347994986,1736262665191,-500.0,0.00021095,3]
[347994988,1736262665202,-1255.76,0.00021095,3]
[347994990,1736262665214,-500.0,0.00021095,3]
[347994993,1736262665230,-805.96,0.00021095,3]
[347994994,1736262665241,-500.0,0.00021095,3]
[347994996,1736262665252,-500.0,0.00021095,3]
[347994998,1736262665264,-500.0,0.00021095,3]
[347995000,1736262665275,-500.0,0.00021095,3]
[347995002,1736262665287,-500.0,0.00021095,3]
[347995004,1736262665298,-500.0,0.00021095,3]
[347995006,1736262665310,-500.0,0.00021095,3]
[347995008,1736262665327,-843.35,0.00021095,3]
[347995010,1736262665341,-500.0,0.00021095,3]
[347995013,1736262665354,-1724.86,0.00021095,3]
[347995015,1736262665366,-500.0,0.00021095,3]
[347995016,1736262665376,-571.08,0.00021095,3]
[347995019,1736262665388,-500.0,0.00021095,3]
[347995021,1736262665400,-500.0,0.00021095,3]
[347995023,1736262665412,-500.0,0.00021095,3]
[347995025,1736262665423,-5517.98142276,0.00021095,3]
[347995027,1736262665442,-3715.21857724,0.00021095,3]
[347995029,1736262665453,-500.0,0.00021095,3]
[347995031,1736262665466,-500.0,0.00021095,3]
[347995033,1736262665479,-500.0,0.00021095,3]
[347995035,1736262665492,-500.0,0.00021095,3]
[347995037,1736262665504,-500.0,0.00021095,3]
[347995039,1736262665516,-500.0,0.00021095,3]
[347995041,1736262665527,-283.85542276,0.00021095,3]
[347995044,1736262665542,-897.15313123,0.00021095,3]
[347995046,1736262665561,-604.71144601,0.00021095,3]
[347995048,1736262665578,-197.66774438,0.00021095,3]
[347995050,1736262665592,-730.06225562,0.00021095,3]
[347995052,1736262665602,-500.0,0.00021095,3]
[347995054,1736262665614,-1665.15,0.00021095,3]
[347995056,1736262665626,-743.11,0.00021095,2]
[347995059,1736262665637,-361.67774438,0.00021095,3]
[347995815,1736262695579,-1495.2,0.00021917,30]
[347995828,1736263110088,296.187954,0.00013973,2]
[347995830,1736263315090,252.30400978,0.00025,120]
[347995831,1736263471599,-454.39,0.00021917,30]
[347996134,1736263834910,-300.0,0.00017999,2]
[347996135,1736263834920,-7367.34246565,0.00018,2]
[347996136,1736263834963,-9858.52494862,0.00018,2]
[347996137,1736263835011,-58774.13258573,0.00018,2]
[347996138,1736263835021,-500.0,0.00018497,2]
[347996139,1736263835031,-500.0,0.00018497,2]
[347996140,1736263835041,-500.0,0.00018497,2]
[347996141,1736263835051,-500.0,0.00018497,2]
[347996142,1736263835061,-500.0,0.00018497,2]
[347996143,1736263835071,-500.0,0.00018497,2]
[347996144,1736263835080,-500.0,0.00018497,2]
[347996145,1736263835090,-500.0,0.00018497,2]
[347996146,1736263835099,-457.44488245,0.00018497,2]
[347996147,1736263835118,-500.0,0.00018497,2]
[347996148,1736263835128,-500.0,0.00018497,2]
[347996149,1736263835138,-250.0,0.00018497,2]
[347996150,1736263835147,-181.0,0.00018497,2]
[347996151,1736263835157,-465.00499999,0.00018599,3]
[347996152,1736263835166,-4549.22276779,0.000189,2]
[347996153,1736263835176,-5000.0,0.00018904,7]
[347996154,1736263835185,-150.0,0.00018905,2]
[347996155,1736263835198,-535.0,0.00018905,2]
[347996156,1736263835208,-2081.0,0.00018905,2]
[347996157,1736263835218,-2317.0,0.00018905,2]
[347996158,1736263835227,-4549.22276765,0.00019072,2]
[347996159,1736263835238,-500.0,0.00019173,2]
[347996160,1736263835247,-153.6,0.00019177,2]
[347996161,1736263835258,-151.976,0.00019177,2]
[347996162,1736263835268,-184.33338246,0.00019177,2]
[347996163,1736263835279,-645.37996038,0.00019178,2]
[347996164,1736263835288,-161.60800485,0.00019178,2]
[347996165,1736263835298,-500.0,0.00019178,2]
[347996166,1736263835307,-151.0,0.00019178,2]
[347996168,1736263835317,-500.0,0.00019178,2]
[347996170,1736263835327,-581.59,0.00019178,2]
[347996172,1736263835336,-500.0,0.00019178,2]
[347996174,1736263835348,-500.0,0.00019178,2]
[347996176,1736263835363,-500.0,0.00019178,2]
[347996178,1736263835372,-500.0,0.00019178,2]
[347996180,1736263835383,-500.0,0.00019178,2]
[347996182,1736263835392,-500.0,0.00019178,2]
[347996184,1736263835402,-467.83320518,0.00019178,2]
[347996186,1736263835411,-537.31,0.00019178,2]
[347996188,1736263835421,-500.0,0.00019178,2]
[347996190,1736263835431,-500.0,0.00019178,2]
[347996192,1736263835440,-500.0,0.00019178,2]
[347996194,1736263835450,-500.0,0.00019178,2]
[347996196,1736263835459,-500.0,0.00019178,2]
[347996198,1736263835469,-500.0,0.00019178,2]
[347996200,1736263835479,-500.0,0.00019178,2]
[347996201,1736263835489,-524.87817578,0.00019178,2]
[347996202,1736263835498,-500.0,0.00019178,2]
[347996203,1736263835507,-500.0,0.00019178,2]
[347996204,1736263835516,-500.0,0.00019178,2]
[347996205,1736263835525,-500.0,0.00019178,2]
[347996206,1736263835534,-500.0,0.00019178,2]
[347996207,1736263835543,-500.0,0.00019178,2]
[347996208,1736263835551,-231.7749447,0.00019178,2]
[347996209,1736263835560,-500.0,0.00019178,2]
[347996210,1736263835569,-500.0,0.00019178,2]
[347996211,1736263835578,-430.15662646,0.00019178,2]
[347996212,1736263835587,-500.0,0.00019178,2]
[347996217,1736263835745,-500.0,0.00019178,2]
[347996219,1736263835755,-500.0,0.00019178,2]
[347996221,1736263835765,-500.0,0.00019178,2]
[347996223,1736263835774,-500.0,0.00019178,2]
[347996225,1736263835783,-6647.35,0.00019178,2]
[347996227,1736263835792,-500.0,0.00019178,2]
[347996229,1736263835801,-570.06,0.00019178,2]
[347996231,1736263835811,-500.0,0.00019178,2]
[347996233,1736263835819,-500.0,0.00019178,2]
[347996235,1736263835829,-500.0,0.00019178,2]
[347996237,1736263835838,-500.0,0.00019178,2]
[347996239,1736263835847,-500.0,0.00019178,2]
[347996241,1736263835860,-500.0,0.00019178,2]
[347996243,1736263835869,-500.0,0.00019178,2]
[347996245,1736263835878,-500.0,0.00019178,2]
[347996247,1736263835887,-500.0,0.00019178,2]
[347996249,1736263835897,-500.0,0.00019178,2]
[347996251,1736263835906,-151.34486279,0.00019178,2]
[347996253,1736263835917,-500.0,0.00019178,2]
[347996255,1736263835926,-500.0,0.00019178,2]
[347996257,1736263835936,-500.0,0.00019178,2]
[347996259,1736263835946,-500.0,0.00019178,2]
[347996261,1736263835955,-500.0,0.00019178,2]
[347996263,1736263835965,-500.0,0.00019178,2]
[347996265,1736263835975,-502.16,0.00019178,2]
[347996267,1736263835984,-500.0,0.00019178,2]
[347996269,1736263835993,-500.0,0.00019178,2]
[347996271,1736263836003,-500.0,0.00019178,2]
[347996273,1736263836012,-500.0,0.00019178,2]
[347996275,1736263836022,-562.24,0.00019178,2]
[347996277,1736263836031,-446.97815243,0.00019178,2]
[347996279,1736263836041,-500.0,0.00019178,2]
[347996281,1736263836050,-837.18,0.00019178,2]
[347996283,1736263836060,-500.0,0.00019178,2]
[347996285,1736263836071,-500.0,0.00019178,2]
[347996287,1736263836080,-377.72884785,0.00019178,2]
[347996289,1736263836089,-1190.48,0.00019178,2]
[347996291,1736263836099,-1149.91,0.00019178,2]
[347996293,1736263836112,-500.0,0.00019178,2]
[347996295,1736263836121,-500.0,0.00019178,2]
[347996297,1736263836130,-509.0580298,0.00019178,2]
[347996299,1736263836140,-500.0,0.00019178,2]
[347996301,1736263836149,-525.39,0.00019178,2]
[347996304,1736263836159,-500.0,0.00019178,2]
[347996305,1736263836168,-261.22282466,0.00019178,2]
[347996307,1736263836178,-500.0,0.00019178,2]
[347996309,1736263836188,-500.0,0.00019178,2]
[347996311,1736263836199,-500.0,0.00019178,2]
[347996313,1736263836208,-500.0,0.00019178,2]
[347996315,1736263836224,-500.0,0.00019178,2]
[347996317,1736263836234,-500.0,0.00019178,2]
[347996320,1736263836250,-1110.1,0.00019178,2]
[347996322,1736263836260,-500.0,0.00019178,2]
[347996323,1736263836270,-795.42,0.00019178,2]
[347996325,1736263836281,-771.17,0.00019178,2]
[347996327,1736263836290,-726.21,0.00019178,2]
[347996329,1736263836299,-178.72001784,0.00019178,2]
[347996331,1736263836309,-500.0,0.00019178,2]
[347996333,1736263836318,-500.0,0.00019178,2]
[347996335,1736263836328,-500.0,0.00019178,2]
[347996337,1736263836337,-500.0,0.00019178,2]
[347996339,1736263836347,-500.0,0.00019178,2]
[347996341,1736263836360,-500.0,0.00019178,2]
[347996344,1736263836369,-500.0,0.00019178,2]
[347996346,1736263836379,-500.0,0.00019178,2]
[347996347,1736263836389,-1358.95,0.00019178,2]
[347996350,1736263836398,-500.0,0.00019178,2]
[347996351,1736263836408,-500.0,0.00019178,2]
[347996354,1736263836418,-445.1087233,0.00019178,5]
[347996355,1736263836427,-500.0,0.00019178,2]
[347996358,1736263836437,-500.0,0.00019178,2]
[347996360,1736263836446,-728.82,0.00019178,2]
[347996361,1736263836456,-500.0,0.00019178,2]
[347996364,1736263836466,-618.49,0.00019178,2]
[347996366,1736263836477,-500.0,0.00019178,2]
[347996367,1736263836486,-667.58,0.00019178,2]
[347996370,1736263836496,-500.0,0.00019178,2]
[347996372,1736263836505,-500.0,0.00019178,2]
[347996374,1736263836515,-500.0,0.00019178,2]
[347996375,1736263836524,-500.0,0.00019178,2]
[347996378,1736263836534,-500.0,0.00019178,2]
[347996379,1736263836543,-1383.89,0.00019178,2]
[347996381,1736263836552,-510.21337728,0.00019178,2]
[347996383,1736263836562,-500.0,0.00019178,2]
[347996385,1736263836571,-510.87539464,0.00019178,2]
[347996387,1736263836580,-814.18,0.00019178,2]
[347996389,1736263836590,-500.0,0.00019178,2]
[347996391,1736263836599,-6155.47,0.00019178,2]
[347996393,1736263836611,-1040.71,0.00019178,2]
[347996395,1736263836621,-1414.04,0.00019178,2]
[347996397,1736263836630,-500.0,0.00019178,2]
[347996399,1736263836640,-500.0,0.00019178,2]
[347996401,1736263836649,-751.25,0.00019178,2]
[347996403,1736263836659,-500.0,0.00019178,2]
[347996405,1736263836668,-500.0,0.00019178,2]
[347996407,1736263836678,-500.0,0.00019178,2]
[347996410,1736263836687,-1546.8,0.00019178,2]
[347996412,1736263836697,-999.05,0.00019178,2]
[347996414,1736263836707,-736.34,0.00019178,2]
[347996416,1736263836716,-500.0,0.00019178,2]
[347996417,1736263836725,-776.57,0.00019178,2]
[347996420,1736263836735,-500.0,0.00019178,2]
[347996422,1736263836744,-773.0,0.00019178,2]
[347996423,1736263836753,-827.58,0.00019178,2]
[347996426,1736263836762,-2337.21,0.00019178,2]
[347996428,1736263836772,-500.0,0.00019178,2]
[347996430,1736263836782,-559.35,0.00019178,2]
[347996431,1736263836791,-500.0,0.00019178,2]
[347996433,1736263836800,-505.13610034,0.00019178,2]
[347996435,1736263836810,-500.0,0.00019178,2]
[347996437,1736263836819,-500.0,0.00019178,2]
[347996439,1736263836828,-906.42,0.00019178,2]
[347996442,1736263836837,-500.0,0.00019178,2]
[347996444,1736263836847,-500.0,0.00019178,2]
[347996446,1736263836860,-542.27,0.00019178,2]
[347996447,1736263836869,-500.0,0.00019178,2]
[347996449,1736263836879,-500.0,0.00019178,2]
[347996451,1736263836888,-500.0,0.00019178,2]
[347996453,1736263836898,-500.0,0.00019178,2]
[347996455,1736263836907,-1275.13,0.00019178,2]
[347996457,1736263836917,-500.0,0.00019178,2]
[347996459,1736263836926,-1612.95,0.00019178,2]
[347996461,1736263836936,-500.0,0.00019178,2]
[347996463,1736263836945,-1523.59,0.00019178,2]
[347996465,1736263836954,-500.0,0.00019178,2]
[347996467,1736263836963,-500.0,0.00019178,2]
[347996469,1736263836974,-500.0,0.00019178,2]
[347996471,1736263836983,-500.0,0.00019178,2]
[347996473,1736263836992,-500.0,0.00019178,2]
[347996475,1736263837002,-500.0,0.00019178,2]
[347996477,1736263837011,-1375.03,0.00019178,2]
[347996479,1736263837020,-500.0,0.00019178,2]
[347996481,1736263837029,-575.94,0.00019178,2]
[347996482,1736263837039,-500.0,0.00019178,2]
[347996483,1736263837048,-4023.33,0.00019178,2]
[347996484,1736263837057,-500.0,0.00019178,2]
[347996485,1736263837066,-1007.28,0.00019178,2]
[347996486,1736263837076,-590.09,0.00019178,2]
[347996487,1736263837086,-500.0,0.00019178,2]
[347996488,1736263837095,-500.0,0.00019178,2]
[347996489,1736263837107,-1030.77,0.00019178,2]
[347996490,1736263837116,-504.47090503,0.00019178,2]
[347996491,1736263837126,-3539.04,0.00019178,2]
[347996492,1736263837135,-500.0,0.00019178,2]
[347996493,1736263837145,-500.0,0.00019178,2]
[347996494,1736263837154,-30570.14,0.00019178,2]
[347996495,1736263837164,-500.0,0.00019178,2]
[347996496,1736263837174,-1517.96,0.00019178,2]
[347996497,1736263837183,-500.0,0.00019178,2]
[347996498,1736263837193,-500.0,0.00019178,2]
[347996499,1736263837203,-500.0,0.00019178,2]
[347996500,1736263837212,-500.0,0.00019178,2]
[347996501,1736263837222,-500.0,0.00019178,2]
[347996502,1736263837234,-921.02,0.00019178,2]
[347996503,1736263837243,-500.0,0.00019178,2]
[347996504,1736263837253,-500.0,0.00019178,2]
[347996505,1736263837263,-2766.53,0.00019178,2]
[347996506,1736263837273,-500.0,0.00019178,2]
[347996507,1736263837283,-500.0,0.00019178,2]
[347996508,1736263837292,-500.0,0.00019178,2]
[347996509,1736263837301,-500.0,0.00019178,2]
[347996510,1736263837311,-8812.14,0.00019178,2]
[347996511,1736263837321,-879.36,0.00019178,2]
[347996512,1736263837330,-500.0,0.00019178,2]
[347996513,1736263837340,-731.48,0.00019178,2]
[347996514,1736263837349,-500.0,0.00019178,2]
[347996515,1736263837363,-500.0,0.00019178,2]
[347996516,1736263837373,-500.0,0.00019178,2]
[347996517,1736263837383,-524.87098094,0.00019178,2]
[347996518,1736263837392,-500.0,0.00019178,2]
[347996519,1736263837402,-950.17,0.00019178,2]
[347996520,1736263837411,-1296.81,0.00019178,2]
[347996521,1736263837421,-500.0,0.00019178,2]
[347996522,1736263837430,-500.0,0.00019178,2]
[347996523,1736263837441,-2492.97,0.00019178,2]
[347996524,1736263837450,-500.0,0.00019178,2]
[347996525,1736263837460,-545.75,0.00019178,2]
[347996526,1736263837470,-585.54,0.00019178,2]
[347996527,1736263837479,-500.0,0.00019178,2]
[347996528,1736263837488,-500.0,0.00019178,2]
[347996530,1736263837498,-164.568037,0.00019178,2]
[347996532,1736263837508,-1432.36,0.000192,2]
[347996534,1736263837517,-4549.22276765,0.00019245,2]
[347996536,1736263837526,-4549.22276765,0.00019417,2]
[347996537,1736263837536,-500.0,0.00019452,3]
[347996540,1736263837545,-151.0,0.00019452,2]
[347996543,1736263837555,-151.0,0.00019452,2]
[347996545,1736263837564,-151.0,0.00019452,2]
[347996548,1736263837574,-151.0,0.00019452,2]
[347996550,1736263837584,-498.94246959,0.00019452,3]
[347996554,1736263837594,-581.59,0.00019452,3]
[347996556,1736263837606,-500.0,0.00019452,3]
[347996560,1736263837615,-500.0,0.00019452,3]
[347996563,1736263837624,-500.0,0.00019452,3]
[347996567,1736263837634,-318.83250209,0.00019452,3]
[347996569,1736263837643,-480.24119547,0.00019452,3]
[347996571,1736263837653,-500.0,0.00019452,3]
[347996572,1736263837663,-537.31,0.00019452,3]
[347996575,1736263837672,-500.0,0.00019452,3]
[347996577,1736263837681,-500.0,0.00019452,3]
[347996578,1736263837690,-500.0,0.00019452,3]
[347996581,1736263837700,-500.0,0.00019452,3]
[347996582,1736263837709,-500.0,0.00019452,3]
[347996584,1736263837720,-500.0,0.00019452,3]
[347996586,1736263837729,-500.0,0.00019452,3]
[347996589,1736263837738,-500.0,0.00019452,3]
[347996590,1736263837748,-500.0,0.00019452,3]
[347996592,1736263837757,-500.0,0.00019452,3]
[347996594,1736263837767,-512.54794364,0.00019452,3]
[347996596,1736263837777,-500.0,0.00019452,3]
[347996598,1736263837787,-500.0,0.00019452,2]
[347996601,1736263837797,-500.0,0.00019452,3]
[347996603,1736263837807,-500.0,0.00019452,3]
[347996605,1736263837816,-500.0,0.00019452,3]
[347996606,1736263837826,-500.0,0.00019452,3]
[347996609,1736263837835,-254.59964573,0.00019452,3]
[347996610,1736263837844,-500.0,0.00019452,3]
[347996612,1736263837856,-6647.35,0.00019452,3]
[347996614,1736263837866,-500.0,0.00019452,3]
[347996616,1736263837878,-500.0,0.00019452,3]
[347996618,1736263837888,-500.0,0.00019452,3]
[347996620,1736263837897,-500.0,0.00019452,3]
[347996622,1736263837909,-500.0,0.00019452,3]
[347996624,1736263837919,-500.0,0.00019452,3]
[347996626,1736263837929,-500.0,0.00019452,3]
[347996628,1736263837939,-500.0,0.00019452,3]
[347996630,1736263837949,-500.0,0.00019452,3]
[347996632,1736263837959,-500.0,0.00019452,3]
[347996634,1736263837969,-500.0,0.00019452,3]
[347996636,1736263837978,-500.0,0.00019452,3]
[347996638,1736263837988,-500.0,0.00019452,3]
[347996640,1736263837998,-500.0,0.00019452,3]
[347996642,1736263838008,-436.17561299,0.00019452,3]
[347996644,1736263838018,-500.0,0.00019452,3]
[347996646,1736263838028,-500.0,0.00019452,3]
[347996648,1736263838037,-502.16,0.00019452,3]
[347996650,1736263838047,-500.0,0.00019452,3]
[347996652,1736263838056,-514.54694315,0.00019452,3]
[347996654,1736263838066,-500.0,0.00019452,3]
[347996656,1736263838076,-500.0,0.00019452,3]
[347996658,1736263838085,-562.24,0.00019452,3]
[347996659,1736263838095,-500.0,0.00019452,3]
[347996661,1736263838110,-837.18,0.00019452,3]
[347996664,1736263838120,-500.0,0.00019452,3]
[347996666,1736263838129,-612.60154357,0.00019452,3]
[347996668,1736263838139,-1190.48,0.00019452,3]
[347996669,1736263838148,-1149.91,0.00019452,3]
[347996671,1736263838158,-500.0,0.00019452,3]
[347996673,1736263838167,-550.45816564,0.00019452,3]
[347996675,1736263838176,-500.0,0.00019452,3]
[347996677,1736263838185,-525.39,0.00019452,3]
[347996679,1736263838196,-500.0,0.00019452,3]
[347996681,1736263838207,-500.0,0.00019452,3]
[347996683,1736263838217,-500.0,0.00019452,3]
[347996685,1736263838226,-500.0,0.00019452,3]
[347996688,1736263838237,-500.0,0.00019452,3]
[347996690,1736263838247,-500.0,0.00019452,3]
[347996692,1736263838257,-1110.1,0.00019452,3]
[347996694,1736263838267,-795.42,0.00019452,3]
[347996696,1736263838276,-771.17,0.00019452,3]
[347996699,1736263838287,-726.21,0.00019452,3]
[347996701,1736263838297,-500.0,0.00019452,3]
[347996702,1736263838308,-500.0,0.00019452,3]
[347996704,1736263838318,-500.0,0.00019452,3]
[347996707,1736263838327,-500.0,0.00019452,3]
[347996708,1736263838337,-500.0,0.00019452,3]
[347996710,1736263838346,-500.0,0.00019452,3]
[347996712,1736263838359,-500.0,0.00019452,3]
[347996714,1736263838368,-500.0,0.00019452,3]
[347996716,1736263838378,-1358.95,0.00019452,3]
[347996718,1736263838387,-500.0,0.00019452,3]
[347996720,1736263838397,-500.0,0.00019452,3]
[347996722,1736263838407,-372.60348383,0.00019452,3]
[347996724,1736263838416,-500.0,0.00019452,3]
[347996726,1736263838426,-728.82,0.00019452,3]
[347996728,1736263838435,-500.0,0.00019452,3]